[Event "*** Titled Tuesday Blitz"]
[Site "Chess.com"]
[Date "2020.04.28"]
[Round "1"]
[White "Zkid"]
[Black "fabianvivasz"]
[Result "1-0"]
[WhiteElo "2794"]
[BlackElo "2416"]
[TimeControl "180+1"]
[EndTime "10:06:40 PDT"]
[Termination "Zkid won by resignation"]

1. e4 {[%clk 0:02:59.6]} 1... c5 {[%clk 0:02:57.7]} 2. Nf3 {[%clk 0:02:58.9]}
2... d6 {[%clk 0:02:58]} 3. c3 {[%clk 0:02:58.1]} 3... Nf6 {[%clk 0:02:57.6]} 4.
Be2 {[%clk 0:02:58.3]} 4... e6 {[%clk 0:02:54.5]} 5. O-O {[%clk 0:02:57.7]} 5...
Be7 {[%clk 0:02:54.9]} 6. Re1 {[%clk 0:02:57.8]} 6... O-O {[%clk 0:02:54.3]} 7.
Bf1 {[%clk 0:02:58.1]} 7... Nc6 {[%clk 0:02:52]} 8. d4 {[%clk 0:02:56]} 8...
cxd4 {[%clk 0:02:51.5]} 9. cxd4 {[%clk 0:02:56.9]} 9... e5 {[%clk 0:02:50.2]}
10. d5 {[%clk 0:02:56]} 10... Nb8 {[%clk 0:02:50.2]} 11. h3 {[%clk 0:02:54]}
11... a5 {[%clk 0:02:42.3]} 12. Nc3 {[%clk 0:02:48.4]} 12... Na6 {[%clk
0:02:39.6]} 13. Be3 {[%clk 0:02:45]} 13... Nd7 {[%clk 0:02:33.2]} 14. Rc1 {[%clk
0:02:36.4]} 14... Ndc5 {[%clk 0:02:31]} 15. a3 {[%clk 0:02:27.2]} 15... f5
{[%clk 0:02:28.6]} 16. exf5 {[%clk 0:02:27.4]} 16... Bxf5 {[%clk 0:02:28.7]} 17.
Nd2 {[%clk 0:02:18.1]} 17... Bg5 {[%clk 0:01:59.5]} 18. Nc4 {[%clk 0:02:08]}
18... Bxe3 {[%clk 0:01:50.7]} 19. Rxe3 {[%clk 0:02:08.9]} 19... Rf6 {[%clk
0:01:34.4]} 20. Nb5 {[%clk 0:02:04.8]} 20... Qd7 {[%clk 0:01:20]} 21. Nb6 {[%clk
0:02:03.4]} 21... Qd8 {[%clk 0:01:14.9]} 22. Nxa8 {[%clk 0:02:00]} 22... Qxa8
{[%clk 0:01:15.8]} 23. Qd2 {[%clk 0:01:51.9]} 23... Qd8 {[%clk 0:01:06.8]} 24.
b4 {[%clk 0:01:49.6]} 24... axb4 {[%clk 0:01:03.7]} 25. axb4 {[%clk 0:01:50.5]}
25... Ne4 {[%clk 0:01:02.7]} 26. Qe1 {[%clk 0:01:45.9]} 26... Ng5 {[%clk
0:00:44.5]} 27. Rg3 {[%clk 0:01:37]} 27... Rg6 {[%clk 0:00:36.2]} 28. Qe3 {[%clk
0:01:34]} 28... Nxb4 {[%clk 0:00:24.9]} 29. Qd2 {[%clk 0:01:30.6]} 29... Ne4
{[%clk 0:00:16.2]} 30. Qxb4 {[%clk 0:01:29.4]} 30... Nxg3 {[%clk 0:00:14.7]} 31.
fxg3 {[%clk 0:01:30.3]} 31... Qb6+ {[%clk 0:00:13.4]} 32. Kh2 {[%clk 0:01:28.3]}
32... Bxh3 {[%clk 0:00:10.2]} 33. gxh3 {[%clk 0:01:02.1]} 33... Qf2+ {[%clk
0:00:09.4]} 34. Kh1 {[%clk 0:01:02.2]} 34... Qxg3 {[%clk 0:00:08.6]} 35. Rc8+
{[%clk 0:01:02]} 35... Kf7 {[%clk 0:00:08.6]} 36. Nxd6+ {[%clk 0:01:00.1]} 36...
Rxd6 {[%clk 0:00:06.9]} 37. Rc7+ {[%clk 0:00:57]} 37... Kg6 {[%clk 0:00:05.3]}
38. Qxd6+ {[%clk 0:00:56.7]} 38... Kh5 {[%clk 0:00:05.9]} 39. Be2+ {[%clk
0:00:53.9]} 39... Kh4 {[%clk 0:00:05.2]} 40. Rc4+ {[%clk 0:00:53.4]} 1-0

[Event "*** Titled Tuesday Blitz"]
[Site "Chess.com"]
[Date "2020.04.28"]
[Round "1"]
[White "imdarealist"]
[Black "AlexOstrovskiy"]
[Result "1-0"]
[WhiteElo "2269"]
[BlackElo "2568"]
[TimeControl "180+1"]
[EndTime "10:06:40 PDT"]
[Termination "imdarealist won on time"]

1. d4 {[%clk 0:03:00.9]} 1... e6 {[%clk 0:02:51.3]} 2. Bf4 {[%clk 0:03:00.7]}
2... Nf6 {[%clk 0:02:48.8]} 3. e3 {[%clk 0:03:00.7]} 3... d5 {[%clk 0:02:49.2]}
4. c3 {[%clk 0:02:57.5]} 4... Bd6 {[%clk 0:02:46.9]} 5. Bg3 {[%clk 0:02:55.1]}
5... O-O {[%clk 0:02:46.8]} 6. Nd2 {[%clk 0:02:53.3]} 6... c5 {[%clk 0:02:46.4]}
7. Ngf3 {[%clk 0:02:51.7]} 7... Qc7 {[%clk 0:02:41.2]} 8. Bd3 {[%clk 0:02:51.8]}
8... Nbd7 {[%clk 0:02:40.5]} 9. Rc1 {[%clk 0:02:49.5]} 9... b6 {[%clk
0:02:37.7]} 10. c4 {[%clk 0:02:44.1]} 10... Bb7 {[%clk 0:02:21.2]} 11. cxd5
{[%clk 0:02:29.7]} 11... exd5 {[%clk 0:02:22.1]} 12. dxc5 {[%clk 0:02:12.3]}
12... bxc5 {[%clk 0:02:23]} 13. O-O {[%clk 0:02:02.9]} 13... Rac8 {[%clk
0:02:10.6]} 14. Re1 {[%clk 0:01:54.6]} 14... Rfe8 {[%clk 0:02:03.6]} 15. Qc2
{[%clk 0:01:53]} 15... Bxg3 {[%clk 0:01:56.4]} 16. hxg3 {[%clk 0:01:53.9]} 16...
Qd6 {[%clk 0:01:50.4]} 17. Rcd1 {[%clk 0:01:29.6]} 17... Qb6 {[%clk 0:01:24.7]}
18. b3 {[%clk 0:01:13.1]} 18... g6 {[%clk 0:01:11.3]} 19. e4 {[%clk 0:01:09.4]}
19... Ng4 {[%clk 0:00:36.4]} 20. exd5 {[%clk 0:01:05]} 20... Bxd5 {[%clk
0:00:36]} 21. Nc4 {[%clk 0:01:02.7]} 21... Qf6 {[%clk 0:00:28.5]} 22. Be4 {[%clk
0:00:43.9]} 22... Bxe4 {[%clk 0:00:06.5]} 23. Rxe4 {[%clk 0:00:44.8]} 23... Qf5
{[%clk 0:00:01.6]} 24. Nd6 {[%clk 0:00:27.7]} 1-0

[Event "*** Titled Tuesday Blitz"]
[Site "Chess.com"]
[Date "2020.04.28"]
[Round "1"]
[White "KaterinaMiroshnik"]
[Black "lilleper1"]
[Result "1/2-1/2"]
[WhiteElo "2399"]
[BlackElo "2734"]
[TimeControl "180+1"]
[EndTime "10:06:44 PDT"]
[Termination "Game drawn by repetition"]

1. d4 {[%clk 0:03:00.9]} 1... Nf6 {[%clk 0:02:59.4]} 2. c4 {[%clk 0:03:01.3]}
2... e6 {[%clk 0:02:58.6]} 3. Nf3 {[%clk 0:03:01.7]} 3... d5 {[%clk 0:02:58.3]}
4. e3 {[%clk 0:03:01.6]} 4... b6 {[%clk 0:02:57.4]} 5. Bd3 {[%clk 0:02:59.7]}
5... Bd6 {[%clk 0:02:55.4]} 6. cxd5 {[%clk 0:02:59]} 6... exd5 {[%clk
0:02:54.6]} 7. O-O {[%clk 0:02:59.5]} 7... O-O {[%clk 0:02:53.8]} 8. b3 {[%clk
0:03:00.4]} 8... Bb7 {[%clk 0:02:52.9]} 9. Bb2 {[%clk 0:03:01.3]} 9... Nbd7
{[%clk 0:02:51.6]} 10. Nc3 {[%clk 0:03:01.4]} 10... a6 {[%clk 0:02:50.9]} 11.
Ne2 {[%clk 0:03:01.5]} 11... Ne4 {[%clk 0:02:47.4]} 12. Ne5 {[%clk 0:02:47.9]}
12... Qe7 {[%clk 0:02:25.2]} 13. Bxe4 {[%clk 0:02:38.6]} 13... dxe4 {[%clk
0:02:23.3]} 14. Nc4 {[%clk 0:02:38.8]} 14... Nf6 {[%clk 0:02:05.8]} 15. Nxd6
{[%clk 0:02:34.6]} 15... cxd6 {[%clk 0:02:06.7]} 16. Ng3 {[%clk 0:02:33.2]}
16... g6 {[%clk 0:02:01.4]} 17. d5 {[%clk 0:02:18.4]} 17... Nxd5 {[%clk
0:01:51.1]} 18. Qd4 {[%clk 0:02:16.3]} 18... Qe5 {[%clk 0:01:43.9]} 19. Qxe5
{[%clk 0:02:14.7]} 19... dxe5 {[%clk 0:01:43.9]} 20. Nxe4 {[%clk 0:02:14.3]}
20... f6 {[%clk 0:01:36.3]} 21. Rac1 {[%clk 0:02:07.4]} 21... Rfd8 {[%clk
0:01:29.8]} 22. Rfd1 {[%clk 0:02:00.2]} 22... Kf7 {[%clk 0:01:27.1]} 23. Nc3
{[%clk 0:01:48.5]} 23... Nb4 {[%clk 0:01:24.4]} 24. Na4 {[%clk 0:01:34.9]} 24...
Rxd1+ {[%clk 0:00:49]} 25. Rxd1 {[%clk 0:01:34.3]} 25... Ke6 {[%clk 0:00:38.9]}
26. Nxb6 {[%clk 0:01:31.8]} 26... Rb8 {[%clk 0:00:38.9]} 27. a3 {[%clk
0:01:29.9]} 27... Nd5 {[%clk 0:00:37]} 28. Nc4 {[%clk 0:01:26.6]} 28... Bc6
{[%clk 0:00:32.8]} 29. b4 {[%clk 0:01:23.8]} 29... Bb5 {[%clk 0:00:30.6]} 30.
Na5 {[%clk 0:01:15.7]} 30... Rc8 {[%clk 0:00:27.5]} 31. Rc1 {[%clk 0:01:10.7]}
31... Rxc1+ {[%clk 0:00:26.5]} 32. Bxc1 {[%clk 0:01:11.6]} 32... Nb6 {[%clk
0:00:26.8]} 33. Nb3 {[%clk 0:01:10.3]} 33... Kd5 {[%clk 0:00:20.4]} 34. Nc5
{[%clk 0:01:11.2]} 34... Kc4 {[%clk 0:00:20.4]} 35. Ne6 {[%clk 0:01:06]} 35...
Nd7 {[%clk 0:00:18.8]} 36. Nc7 {[%clk 0:01:01.1]} 36... Kd3 {[%clk 0:00:18.2]}
37. a4 {[%clk 0:00:52.9]} 37... Bxa4 {[%clk 0:00:16.5]} 38. Nxa6 {[%clk
0:00:53.2]} 38... Kc2 {[%clk 0:00:16.4]} 39. Ba3 {[%clk 0:00:52.9]} 39... Kb3
{[%clk 0:00:16.6]} 40. Bc1 {[%clk 0:00:52.3]} 40... Kc2 {[%clk 0:00:16.8]} 41.
Ba3 {[%clk 0:00:52]} 41... Kb3 {[%clk 0:00:17.1]} 42. Bc1 {[%clk 0:00:47.5]}
42... Kc2 {[%clk 0:00:17]} 1/2-1/2

[Event "*** Titled Tuesday Blitz"]
[Site "Chess.com"]
[Date "2020.04.28"]
[Round "1"]
[White "Nastya_Rakhmangulova"]
[Black "kushagramohan"]
[Result "0-1"]
[WhiteElo "2370"]
[BlackElo "2709"]
[TimeControl "180+1"]
[EndTime "10:06:44 PDT"]
[Termination "kushagramohan won on time"]

1. e4 {[%clk 0:02:43.4]} 1... e5 {[%clk 0:02:59]} 2. Nf3 {[%clk 0:02:42.8]} 2...
Nc6 {[%clk 0:02:58.1]} 3. c3 {[%clk 0:02:43.5]} 3... d5 {[%clk 0:02:51.1]} 4.
Qa4 {[%clk 0:02:43.1]} 4... dxe4 {[%clk 0:02:47.8]} 5. Nxe5 {[%clk 0:02:42.8]}
5... Bd7 {[%clk 0:02:41.2]} 6. Nxd7 {[%clk 0:02:28.4]} 6... Qxd7 {[%clk
0:02:42.1]} 7. Bb5 {[%clk 0:02:28.5]} 7... Nf6 {[%clk 0:02:41.1]} 8. O-O {[%clk
0:02:28.3]} 8... Be7 {[%clk 0:02:41.1]} 9. d4 {[%clk 0:02:16.2]} 9... exd3
{[%clk 0:02:40.2]} 10. Rd1 {[%clk 0:02:01.7]} 10... O-O {[%clk 0:02:39.1]} 11.
Bxc6 {[%clk 0:01:54.7]} 11... bxc6 {[%clk 0:02:37.2]} 12. Nd2 {[%clk 0:01:49]}
12... Bc5 {[%clk 0:02:29.3]} 13. h3 {[%clk 0:01:45.5]} 13... Rfe8 {[%clk
0:02:26.8]} 14. Qc4 {[%clk 0:01:39.2]} 14... Bb6 {[%clk 0:02:12.3]} 15. Nf3
{[%clk 0:01:28.6]} 15... Rad8 {[%clk 0:01:51.5]} 16. Bg5 {[%clk 0:01:24.6]}
16... Qf5 {[%clk 0:01:41.9]} 17. Bxf6 {[%clk 0:01:22.8]} 17... gxf6 {[%clk
0:01:42.8]} 18. Rd2 {[%clk 0:01:07.2]} 18... Rd6 {[%clk 0:01:32.4]} 19. Rad1
{[%clk 0:01:06.7]} 19... Red8 {[%clk 0:01:32.5]} 20. Nh4 {[%clk 0:00:51.6]}
20... Qg5 {[%clk 0:01:20.4]} 21. Nf3 {[%clk 0:00:34.6]} 21... Qf5 {[%clk
0:01:07]} 22. Nh4 {[%clk 0:00:33.6]} 22... Qd5 {[%clk 0:01:06.7]} 23. Qg4+
{[%clk 0:00:31.4]} 23... Kh8 {[%clk 0:01:05.3]} 24. Re1 {[%clk 0:00:06.7]} 24...
Rg8 {[%clk 0:00:55.7]} 25. Qf4 {[%clk 0:00:07.1]} 25... Qg5 {[%clk 0:00:41.4]}
26. Qxg5 {[%clk 0:00:04.4]} 26... fxg5 {[%clk 0:00:42.3]} 27. Nf5 {[%clk
0:00:04.6]} 27... Rf6 {[%clk 0:00:41.4]} 28. Ne3 {[%clk 0:00:02.4]} 28... Rd8
{[%clk 0:00:41]} 29. Ng4 {[%clk 0:00:01.1]} 29... Re6 {[%clk 0:00:41]} 0-1

[Event "*** Titled Tuesday Blitz"]
[Site "Chess.com"]
[Date "2020.04.28"]
[Round "1"]
[White "LizaSolovyova"]
[Black "annamaja"]
[Result "0-1"]
[WhiteElo "2535"]
[BlackElo "2227"]
[TimeControl "180+1"]
[EndTime "10:06:45 PDT"]
[Termination "annamaja won by resignation"]

1. d4 {[%clk 0:02:59]} 1... Nf6 {[%clk 0:02:59.1]} 2. e3 {[%clk 0:02:57]} 2...
d5 {[%clk 0:02:57.4]} 3. Bd3 {[%clk 0:02:57.3]} 3... e6 {[%clk 0:02:56.6]} 4. c3
{[%clk 0:02:57]} 4... c5 {[%clk 0:02:56]} 5. f4 {[%clk 0:02:57.3]} 5... Nc6
{[%clk 0:02:55.9]} 6. Nf3 {[%clk 0:02:57.7]} 6... Bd6 {[%clk 0:02:53]} 7. O-O
{[%clk 0:02:57.6]} 7... b6 {[%clk 0:02:50.6]} 8. Ne5 {[%clk 0:02:57.7]} 8... Bb7
{[%clk 0:02:46.8]} 9. Nd2 {[%clk 0:02:57.8]} 9... Qc7 {[%clk 0:02:41.9]} 10. Qf3
{[%clk 0:02:57.6]} 10... c4 {[%clk 0:02:29.9]} 11. Bc2 {[%clk 0:02:56.8]} 11...
O-O-O {[%clk 0:02:29.2]} 12. a4 {[%clk 0:02:55]} 12... a5 {[%clk 0:02:28.8]} 13.
Rb1 {[%clk 0:02:51.1]} 13... Rdf8 {[%clk 0:01:56.4]} 14. b3 {[%clk 0:02:49.7]}
14... cxb3 {[%clk 0:01:49.9]} 15. Rxb3 {[%clk 0:02:50.6]} 15... Ba6 {[%clk
0:01:47.9]} 16. Re1 {[%clk 0:02:40.7]} 16... Bxe5 {[%clk 0:01:10.9]} 17. fxe5
{[%clk 0:02:39.9]} 17... Nd7 {[%clk 0:01:11.3]} 18. e4 {[%clk 0:02:38]} 18...
Kb8 {[%clk 0:00:53]} 19. exd5 {[%clk 0:02:37.4]} 19... Nxd4 {[%clk 0:00:53]} 20.
cxd4 {[%clk 0:02:33.7]} 20... Qxc2 {[%clk 0:00:53]} 21. Rc3 {[%clk 0:02:20.7]}
21... Qxa4 {[%clk 0:00:50.6]} 22. Ba3 {[%clk 0:02:21]} 22... Qxd4+ {[%clk
0:00:47.1]} 23. Kh1 {[%clk 0:02:20.4]} 23... Rc8 {[%clk 0:00:30.1]} 24. Bd6+
{[%clk 0:02:19.4]} 24... Ka7 {[%clk 0:00:26.6]} 25. Rxc8 {[%clk 0:02:15.8]}
25... Rxc8 {[%clk 0:00:26.7]} 26. Qxf7 {[%clk 0:02:15]} 26... Qxd2 {[%clk
0:00:18.2]} 27. Qxd7+ {[%clk 0:02:14.4]} 27... Bb7 {[%clk 0:00:18.2]} 28. Rf1
{[%clk 0:02:05.4]} 28... Qxd5 {[%clk 0:00:17.1]} 29. Qxg7 {[%clk 0:02:02.5]}
29... Rc2 {[%clk 0:00:11.8]} 30. Rg1 {[%clk 0:01:58.5]} 30... Rxg2 {[%clk
0:00:09.8]} 31. Qxg2 {[%clk 0:01:54.5]} 31... Qd2 {[%clk 0:00:07.7]} 32. Qxb7+
{[%clk 0:01:52.1]} 32... Kxb7 {[%clk 0:00:07]} 33. Rg7+ {[%clk 0:01:44.2]} 33...
Ka6 {[%clk 0:00:07.1]} 34. Re7 {[%clk 0:01:44.3]} 34... Qe1+ {[%clk 0:00:06]}
35. Kg2 {[%clk 0:01:44.4]} 35... Qe4+ {[%clk 0:00:06.6]} 36. Kf2 {[%clk
0:01:44.5]} 36... Qf5+ {[%clk 0:00:06.7]} 37. Ke3 {[%clk 0:01:44.4]} 37... a4
{[%clk 0:00:07.2]} 38. Rc7 {[%clk 0:01:38.6]} 38... h5 {[%clk 0:00:07.1]} 39.
Rc8 {[%clk 0:01:37.1]} 39... Kb5 {[%clk 0:00:06.9]} 40. Ra8 {[%clk 0:01:36.9]}
40... h4 {[%clk 0:00:06.7]} 41. Rf8 {[%clk 0:01:35]} 41... Qg5+ {[%clk
0:00:06.5]} 42. Ke4 {[%clk 0:01:34.3]} 42... Qg2+ {[%clk 0:00:06.2]} 43. Kd4
{[%clk 0:01:33.8]} 43... Qxh2 {[%clk 0:00:06.2]} 44. Rb8 {[%clk 0:01:32.2]}
44... Qf2+ {[%clk 0:00:05.7]} 45. Ke4 {[%clk 0:01:32.5]} 45... h3 {[%clk
0:00:05.2]} 46. Rh8 {[%clk 0:01:31.7]} 46... h2 {[%clk 0:00:05.2]} 47. Be7
{[%clk 0:01:29.5]} 47... Qg2+ {[%clk 0:00:05.5]} 48. Kd4 {[%clk 0:01:29.3]}
48... h1=Q {[%clk 0:00:06.4]} 0-1

[Event "*** Titled Tuesday Blitz"]
[Site "Chess.com"]
[Date "2020.04.28"]
[Round "1"]
[White "NIGWAPO"]
[Black "Trickov"]
[Result "1-0"]
[WhiteElo "2595"]
[BlackElo "2260"]
[TimeControl "180+1"]
[EndTime "10:06:47 PDT"]
[Termination "NIGWAPO won by resignation"]

1. Nf3 {[%clk 0:03:00.9]} 1... d5 {[%clk 0:01:25.2]} 2. c4 {[%clk 0:03:01.8]}
2... c6 {[%clk 0:01:13.8]} 3. g3 {[%clk 0:02:04.3]} 3... Nf6 {[%clk 0:01:13.6]}
4. Bg2 {[%clk 0:02:04.6]} 4... Bf5 {[%clk 0:01:13.3]} 5. O-O {[%clk 0:02:05.1]}
5... e6 {[%clk 0:01:13.6]} 6. b3 {[%clk 0:02:05.7]} 6... Nbd7 {[%clk 0:01:13.8]}
7. d3 {[%clk 0:02:06.6]} 7... Bc5 {[%clk 0:01:14.2]} 8. Bb2 {[%clk 0:02:07.2]}
8... O-O {[%clk 0:01:13.1]} 9. Nbd2 {[%clk 0:02:07.8]} 9... Qe7 {[%clk
0:01:11.9]} 10. Qc2 {[%clk 0:02:08.3]} 10... a5 {[%clk 0:01:10.6]} 11. e4 {[%clk
0:02:08]} 11... dxe4 {[%clk 0:01:10.2]} 12. dxe4 {[%clk 0:02:08.9]} 12... Bg6
{[%clk 0:01:10.1]} 13. Rad1 {[%clk 0:02:08.5]} 13... Bb4 {[%clk 0:01:09.6]} 14.
Rfe1 {[%clk 0:02:04.1]} 14... Nc5 {[%clk 0:01:09.4]} 15. Ne5 {[%clk 0:02:03.6]}
15... Rfd8 {[%clk 0:01:04.1]} 16. Nxg6 {[%clk 0:02:02.2]} 16... hxg6 {[%clk
0:01:03.1]} 17. a3 {[%clk 0:02:02.2]} 17... Bxd2 {[%clk 0:00:56.2]} 18. Rxd2
{[%clk 0:02:02.8]} 18... Rxd2 {[%clk 0:00:54.6]} 19. Qxd2 {[%clk 0:02:03.7]}
19... Nxb3 {[%clk 0:00:53.8]} 20. Qe3 {[%clk 0:02:04.3]} 20... Nc5 {[%clk
0:00:52]} 21. e5 {[%clk 0:02:02.2]} 21... Nfd7 {[%clk 0:00:50.7]} 22. Bd4 {[%clk
0:02:02.8]} 22... a4 {[%clk 0:00:48]} 23. Rb1 {[%clk 0:02:02.2]} 23... Nb3
{[%clk 0:00:47.9]} 24. Bb2 {[%clk 0:02:01.9]} 24... Ndc5 {[%clk 0:00:47.4]} 25.
h4 {[%clk 0:02:01.7]} 25... Rd8 {[%clk 0:00:46.3]} 26. Bf1 {[%clk 0:02:00.7]}
26... Qd7 {[%clk 0:00:45.3]} 27. Bc3 {[%clk 0:02:00.7]} 27... Qc7 {[%clk
0:00:42.8]} 28. Bb4 {[%clk 0:02:00.7]} 28... b6 {[%clk 0:00:40.5]} 29. Qf4
{[%clk 0:01:59.1]} 29... Rd4 {[%clk 0:00:38.7]} 30. Qg5 {[%clk 0:01:57.9]} 30...
Qd7 {[%clk 0:00:36.5]} 31. h5 {[%clk 0:01:54.5]} 31... gxh5 {[%clk 0:00:35.8]}
32. Qxh5 {[%clk 0:01:55.1]} 32... g6 {[%clk 0:00:35.3]} 33. Qg5 {[%clk
0:01:54.5]} 33... Rd2 {[%clk 0:00:34.5]} 34. Bxd2 {[%clk 0:01:53.8]} 34... Qxd2
{[%clk 0:00:32.3]} 35. Qxd2 {[%clk 0:01:53.2]} 35... Nxd2 {[%clk 0:00:32.4]} 36.
Rxb6 {[%clk 0:01:52.2]} 36... Nd7 {[%clk 0:00:28.4]} 37. Rxc6 {[%clk 0:01:51.3]}
37... Nxe5 {[%clk 0:00:28.2]} 38. Ra6 {[%clk 0:01:51.4]} 38... Nef3+ {[%clk
0:00:27.4]} 39. Kg2 {[%clk 0:01:49.7]} 39... Ne1+ {[%clk 0:00:27.6]} 40. Kg1
{[%clk 0:01:49.8]} 40... Nef3+ {[%clk 0:00:27.6]} 41. Kh1 {[%clk 0:01:49.8]}
41... Nxf1 {[%clk 0:00:26.9]} 42. Kg2 {[%clk 0:01:49.9]} 42... N1d2 {[%clk
0:00:25.8]} 43. c5 {[%clk 0:01:50.1]} 43... Ne5 {[%clk 0:00:24.9]} 44. c6 {[%clk
0:01:50.3]} 44... Nxc6 {[%clk 0:00:23.6]} 45. Rxc6 {[%clk 0:01:50.3]} 45... Nb1
{[%clk 0:00:23.7]} 46. Rc4 {[%clk 0:01:48.7]} 46... Nxa3 {[%clk 0:00:23]} 47.
Rxa4 {[%clk 0:01:49.1]} 47... Nb5 {[%clk 0:00:23.1]} 48. Kf3 {[%clk 0:01:48.9]}
48... Nd6 {[%clk 0:00:22.9]} 49. Ra6 {[%clk 0:01:48.5]} 49... Nf5 {[%clk
0:00:22.6]} 50. g4 {[%clk 0:01:48.1]} 50... Nd4+ {[%clk 0:00:21.9]} 51. Ke4
{[%clk 0:01:47.6]} 51... Nb5 {[%clk 0:00:20.8]} 52. Rc6 {[%clk 0:01:47]} 52...
g5 {[%clk 0:00:18.9]} 53. Ke5 {[%clk 0:01:46.8]} 53... Kg7 {[%clk 0:00:18.9]}
54. Rc5 {[%clk 0:01:46.6]} 54... Na7 {[%clk 0:00:17.5]} 55. Kd6 {[%clk
0:01:45.6]} 55... Kf6 {[%clk 0:00:17]} 56. Kc7 {[%clk 0:01:45.2]} 56... Ke7
{[%clk 0:00:17.2]} 57. Kb7 {[%clk 0:01:45.4]} 57... f5 {[%clk 0:00:17.8]} 58.
gxf5 {[%clk 0:01:44.6]} 58... exf5 {[%clk 0:00:17.6]} 59. Rxf5 {[%clk
0:01:45.1]} 59... Ke6 {[%clk 0:00:16.2]} 60. Rxg5 {[%clk 0:01:45.2]} 1-0

[Event "*** Titled Tuesday Blitz"]
[Site "Chess.com"]
[Date "2020.04.28"]
[Round "1"]
[White "BelaKis"]
[Black "thedjoker98"]
[Result "0-1"]
[WhiteElo "2037"]
[BlackElo "2494"]
[TimeControl "180+1"]
[EndTime "10:06:47 PDT"]
[Termination "thedjoker98 won on time"]

1. Nf3 {[%clk 0:03:00.2]} 1... d5 {[%clk 0:02:59.5]} 2. g3 {[%clk 0:03:01.1]}
2... Nc6 {[%clk 0:02:42.1]} 3. Bg2 {[%clk 0:03:02]} 3... e5 {[%clk 0:02:41.4]}
4. d3 {[%clk 0:03:02.6]} 4... Nf6 {[%clk 0:02:41.1]} 5. O-O {[%clk 0:03:02.4]}
5... Be7 {[%clk 0:02:41.2]} 6. c4 {[%clk 0:02:54.7]} 6... d4 {[%clk 0:02:33.3]}
7. a3 {[%clk 0:02:52.2]} 7... a5 {[%clk 0:02:32.8]} 8. e3 {[%clk 0:02:46.5]}
8... O-O {[%clk 0:02:31.6]} 9. exd4 {[%clk 0:02:36.9]} 9... exd4 {[%clk
0:02:32.5]} 10. Bg5 {[%clk 0:02:18.3]} 10... Bf5 {[%clk 0:02:27.9]} 11. Qc2
{[%clk 0:02:13.4]} 11... h6 {[%clk 0:02:19.1]} 12. Bxf6 {[%clk 0:02:12.4]} 12...
Bxf6 {[%clk 0:02:20]} 13. Nbd2 {[%clk 0:02:12]} 13... Re8 {[%clk 0:02:19.9]} 14.
Rfe1 {[%clk 0:02:11.2]} 14... Qd6 {[%clk 0:02:18.6]} 15. h3 {[%clk 0:01:21.5]}
15... Rab8 {[%clk 0:02:09.5]} 16. Rxe8+ {[%clk 0:01:16.7]} 16... Rxe8 {[%clk
0:02:08.9]} 17. Re1 {[%clk 0:01:17.2]} 17... Rxe1+ {[%clk 0:02:05]} 18. Nxe1
{[%clk 0:01:17.7]} 18... Qe6 {[%clk 0:02:05.9]} 19. Ne4 {[%clk 0:01:14]} 19...
Bxh3 {[%clk 0:01:57.8]} 20. Nxf6+ {[%clk 0:01:06]} 20... gxf6 {[%clk 0:01:58.7]}
21. Nf3 {[%clk 0:01:05.2]} 21... Bg4 {[%clk 0:01:50.6]} 22. Qd2 {[%clk
0:01:03.4]} 22... Kg7 {[%clk 0:01:49.8]} 23. b4 {[%clk 0:01:02.8]} 23... axb4
{[%clk 0:01:45.1]} 24. axb4 {[%clk 0:01:03.7]} 24... Qf5 {[%clk 0:01:45.6]} 25.
Nh4 {[%clk 0:01:00.6]} 25... Qg5 {[%clk 0:01:38]} 26. Qb2 {[%clk 0:00:51.2]}
26... Qe5 {[%clk 0:01:25.6]} 27. b5 {[%clk 0:00:48.9]} 27... Nd8 {[%clk
0:01:23.6]} 28. f4 {[%clk 0:00:33]} 28... Qe3+ {[%clk 0:01:17.1]} 29. Kh2 {[%clk
0:00:30]} 29... Qxd3 {[%clk 0:01:14.9]} 30. Qb4 {[%clk 0:00:22.8]} 30... Ne6
{[%clk 0:00:56.6]} 31. Bxb7 {[%clk 0:00:17.2]} 31... Qe2+ {[%clk 0:00:56.1]} 32.
Bg2 {[%clk 0:00:16.7]} 32... d3 {[%clk 0:00:55.6]} 33. f5 {[%clk 0:00:07.3]}
33... Nd4 {[%clk 0:00:44.4]} 34. Qc5 {[%clk 0:00:06.5]} 34... d2 {[%clk
0:00:41.9]} 35. Qxd4 {[%clk 0:00:06.5]} 35... d1=Q {[%clk 0:00:42.2]} 36. Qf4
{[%clk 0:00:03.8]} 36... Qee1 {[%clk 0:00:40.7]} 0-1

[Event "*** Titled Tuesday Blitz"]
[Site "Chess.com"]
[Date "2020.04.28"]
[Round "1"]
[White "Kate1606"]
[Black "Yuri202062"]
[Result "0-1"]
[WhiteElo "2015"]
[BlackElo "2488"]
[TimeControl "180+1"]
[EndTime "10:06:48 PDT"]
[Termination "Yuri202062 won on time"]

1. e4 {[%clk 0:03:00]} 1... c5 {[%clk 0:02:59.5]} 2. a3 {[%clk 0:02:53.7]} 2...
e6 {[%clk 0:02:56.5]} 3. b4 {[%clk 0:02:51.9]} 3... cxb4 {[%clk 0:02:53.8]} 4.
axb4 {[%clk 0:02:50.5]} 4... Bxb4 {[%clk 0:02:53.2]} 5. c3 {[%clk 0:02:50.1]}
5... Be7 {[%clk 0:02:52]} 6. d4 {[%clk 0:02:49.4]} 6... d6 {[%clk 0:02:47.6]} 7.
f4 {[%clk 0:02:48]} 7... Nc6 {[%clk 0:02:45.7]} 8. Nf3 {[%clk 0:02:46.5]} 8...
Nf6 {[%clk 0:02:44.9]} 9. Bd3 {[%clk 0:02:45.3]} 9... b6 {[%clk 0:02:32.4]} 10.
O-O {[%clk 0:02:41.2]} 10... Bb7 {[%clk 0:02:32.2]} 11. Qc2 {[%clk 0:02:23.9]}
11... h6 {[%clk 0:02:28]} 12. e5 {[%clk 0:02:14.9]} 12... Nd5 {[%clk 0:02:26.3]}
13. Be4 {[%clk 0:01:44.5]} 13... Rc8 {[%clk 0:02:13.4]} 14. Qd3 {[%clk
0:01:33.8]} 14... Na5 {[%clk 0:01:58.9]} 15. Bxd5 {[%clk 0:00:58.5]} 15... Bxd5
{[%clk 0:01:55]} 16. Nbd2 {[%clk 0:00:58]} 16... Qc7 {[%clk 0:01:44.1]} 17. Bb2
{[%clk 0:00:54.2]} 17... Nc4 {[%clk 0:01:38.7]} 18. Bc1 {[%clk 0:00:38.1]} 18...
O-O {[%clk 0:01:35]} 19. f5 {[%clk 0:00:35.3]} 19... dxe5 {[%clk 0:01:27.8]} 20.
Nxe5 {[%clk 0:00:24.7]} 20... Nxe5 {[%clk 0:01:27.2]} 21. dxe5 {[%clk
0:00:24.9]} 21... Qxe5 {[%clk 0:01:20.3]} 22. Rxa7 {[%clk 0:00:23.8]} 22... Bc5+
{[%clk 0:01:16.7]} 23. Kh1 {[%clk 0:00:22.2]} 23... exf5 {[%clk 0:01:10.1]} 24.
Qxf5 {[%clk 0:00:19.5]} 24... Qxf5 {[%clk 0:01:05.6]} 25. Rxf5 {[%clk
0:00:19.1]} 25... Be6 {[%clk 0:01:02.2]} 26. Rf1 {[%clk 0:00:16]} 26... Rfd8
{[%clk 0:00:58.4]} 27. Ne4 {[%clk 0:00:15.7]} 27... Bf8 {[%clk 0:00:55.2]} 28.
Bb2 {[%clk 0:00:13]} 28... Bd5 {[%clk 0:00:50.7]} 29. Ng3 {[%clk 0:00:11.2]}
29... Bc4 {[%clk 0:00:49.4]} 30. Re1 {[%clk 0:00:08.7]} 30... Rd2 {[%clk
0:00:47.8]} 31. Bc1 {[%clk 0:00:07.3]} 31... Rc2 {[%clk 0:00:46.7]} 32. Rb7
{[%clk 0:00:04.9]} 32... Bd5 {[%clk 0:00:45.3]} 33. Re4 {[%clk 0:00:02.4]} 33...
Rxc1+ {[%clk 0:00:40]} 0-1